fUST/lending_fUST_20240416
["ID","MTS","AMOUNT","RATE_DAILY","PERIOD"]
[322673617,1713203438670,-408.38670531,0.00032874,4]
[322673618,1713203438680,-259.44214275,0.00032874,4]
[322673619,1713203438689,-154.86062544,0.00032874,4]
[322673620,1713203438698,-677.6610744,0.00032874,4]
[322673621,1713203438708,-154.73694719,0.00032875,4]
[322673622,1713203438717,-203.1366097,0.00032904,2]
[322673623,1713203438726,-306.0,0.00033068,2]
[322673624,1713203438740,-401.6498258,0.00033151,2]
[322673625,1713203438749,-203.1366097,0.00033151,2]
[322673626,1713203438758,-203.1366097,0.00033151,2]
[322673627,1713203438768,-405.420397,0.00033151,2]
[322673628,1713203438777,-153.0,0.00033151,2]
[322673629,1713203438786,-497.462874,0.00033165,2]
[322673630,1713203438796,-157.65740478,0.00033361,3]
[322673631,1713203438804,-151.0,0.00033424,2]
[322673632,1713203438813,-151.0,0.00033424,2]
[322673633,1713203438822,-151.0,0.00033424,2]
[322673634,1713203438831,-153.0,0.00033425,2]
[322673635,1713203438841,-153.0,0.00033425,2]
[322673636,1713203438850,-153.0,0.00033425,2]
[322673637,1713203438859,-153.0,0.00033425,2]
[322673638,1713203438867,-153.0,0.00033425,2]
[322673639,1713203438876,-306.0,0.00033425,2]
[322673640,1713203438885,-158.742856,0.00033486,2]
[322673641,1713203438894,-151.0,0.00033698,2]
[322673642,1713203438903,-151.0,0.00033698,2]
[322673643,1713203438912,-151.0,0.00033698,2]
[322673644,1713203438923,-151.0,0.00033698,2]
[322673645,1713203438933,-151.0,0.00033698,2]
[322673646,1713203438942,-151.0,0.00033698,2]
[322673647,1713203438951,-151.0,0.00033698,2]
[322673648,1713203438961,-312.1150603,0.00033699,2]
[322673649,1713203438970,-4909.12,0.00033972,7]
[322673650,1713203438979,-3966.05485267,0.00033972,7]
[322673657,1713203440568,-885.83514733,0.00033972,7]
[322673658,1713203440579,-39.91485267,0.00033972,2]
[322673659,1713203440590,-111.08514733,0.00033972,2]
[322673660,1713203440600,-151.0,0.00033972,2]
[322673661,1713203440609,-151.0,0.00033972,2]
[322673662,1713203440619,-151.0,0.00033972,2]
[322673663,1713203440628,-735.64700742,0.00034,2]
[322673664,1713203440637,-465.39337493,0.00034,4]
[322673665,1713203440646,-1334.3291333,0.00034145,2]
[322673666,1713203440662,-665.6708667,0.00034145,2]
[322673667,1713203440672,-347.20185114,0.00034146,2]
[322673668,1713203440681,-153.0,0.00034245,2]
[322673669,1713203440690,-153.0,0.00034245,2]
[322673670,1713203440700,-4909.12,0.00034246,7]
[322673671,1713203440709,-1684.43140271,0.00034246,7]
[322673672,1713203440720,-3167.45859729,0.00034246,7]
[322673674,1713203440730,-151.0,0.00034246,2]
[322673676,1713203440743,-151.0,0.00034246,2]
[322673677,1713203440752,-151.0,0.00034246,2]
[322673679,1713203440763,-151.0,0.00034246,2]
[322673681,1713203440772,-151.0,0.00034246,2]
[322673683,1713203440781,-151.0,0.00034246,2]
[322673685,1713203440791,-151.0,0.00034246,2]
[322673686,1713203440800,-153.0,0.00034247,2]
[322673688,1713203440810,-306.0,0.00034247,2]
[322673690,1713203440819,-153.0,0.00034247,2]
[322673692,1713203440829,-153.0,0.00034247,2]
[322673694,1713203440839,-153.0,0.00034247,2]
[322673696,1713203440848,-306.0,0.00034247,2]
[322673697,1713203440858,-10000.0,0.0003425,18]
[322673699,1713203440867,-150.74373565,0.00034316,2]
[322673701,1713203440877,-250.06576819,0.00034316,2]
[322673702,1713203440886,-347.20185114,0.00034335,2]
[322673703,1713203440896,-150.0,0.00034423,2]
[322673704,1713203440906,-500.0,0.00034519,7]
[322673705,1713203440915,-500.0,0.00034519,7]
[322673706,1713203440926,-417.63091491,0.00034519,7]
[322673707,1713203440935,-432.56019449,0.00034519,7]
[322673708,1713203440945,-500.0,0.00034519,7]
[322673709,1713203440954,-4909.12,0.0003452,7]
[322673710,1713203440963,-4851.89,0.0003452,7]
[322673711,1713203440973,-267.92912,0.0003452,2]
[322673712,1713203440982,-151.0,0.0003452,2]
[322673713,1713203440997,-151.0,0.0003452,2]
[322673714,1713203441007,-204.671176,0.0003452,2]
[322673715,1713203441016,-151.0,0.0003452,2]
[322673716,1713203441025,-163.0,0.00034521,2]
[322673717,1713203441035,-347.20185114,0.00034523,2]
[322673718,1713203441044,-21260.63430785,0.00034555,10]
[322673719,1713203441114,-400.24522406,0.00034555,10]
[322673720,1713203441126,-464.78866184,0.00034555,10]
[322673721,1713203441138,-367.733038,0.00034555,10]
[322673722,1713203441149,-827.21261507,0.00034555,10]
[322673723,1713203441161,-3839.97293904,0.00034555,10]
[322673751,1713203443257,-5996.94061349,0.00034555,10]
[322673752,1713203443267,-153.0,0.00034603,2]
[322673753,1713203443277,-347.20185114,0.00034712,2]
[322673754,1713203443286,-203.1366097,0.00034712,2]
[322673755,1713203443295,-203.1366097,0.00034712,2]
[322673756,1713203443305,-203.1366097,0.00034712,2]
[322673757,1713203443314,-203.1366097,0.00034712,2]
[322673758,1713203443323,-203.1366097,0.00034712,2]
[322673759,1713203443332,-203.1366097,0.00034712,2]
[322673760,1713203443341,-203.1366097,0.00034712,2]
[322673761,1713203443350,-203.1366097,0.00034712,2]
[322673762,1713203443359,-203.1366097,0.00034712,2]
[322673764,1713203443368,-203.1366097,0.00034712,2]
[322673766,1713203443377,-4909.12,0.00034794,7]
[322673768,1713203443386,-4851.89,0.00034794,7]
[322673770,1713203443395,-151.0,0.00034794,2]
[322673771,1713203443404,-230.586771,0.00034794,2]
[322673772,1713203443413,-1000.0,0.000348,3]
[322673773,1713203443422,-1000.0,0.000348,3]
[322673774,1713203443431,-1000.0,0.000348,3]
[322673775,1713203443440,-301.4874713,0.00034893,4]
[322673776,1713203443450,-347.20185114,0.000349,2]
[322673777,1713203443459,-2035.33971525,0.000349,2]
[322673778,1713203443468,-150.65,0.0003498,35]
[322673779,1713203443477,-7324.60420657,0.0003499,2]
[322673780,1713203443614,-3702.37633902,0.0003499,2]
[322673781,1713203443689,127.85636944,0.00030205,5]
[322673782,1713203443710,151.0,0.00030205,5]
[322673783,1713203443733,-0.07051651,0.00030205,5]
[322673812,1713203465089,151.0,0.00026241,2]
[322673813,1713203682525,304.64670572,0.0002104,15]
[322673817,1713204046667,200.0,0.00025,30]
[322673819,1713204252916,300.0,0.000242,6]
[322673820,1713204331129,-276.46794406,0.00026232,2]
[322673826,1713204553137,-175.05226836,0.00024131,2]
[322673827,1713204553158,-782.69442227,0.00024132,2]
[322673828,1713204553178,-312.17239167,0.0002624,2]
[322673829,1713204553197,-95.91670532,0.00026241,2]
[322673830,1713204553216,-168.210959,0.00027397,2]
[322673831,1713204553236,-158.742856,0.00027397,2]
[322673832,1713204553257,-173.1351109,0.00027816,2]
[322673833,1713204553282,-3637.47569067,0.0002877,2]
[322673834,1713204553304,-782.69442227,0.00029132,2]
[322673835,1713204553325,-231.751242,0.00029343,2]
[322673836,1713204553344,-400.0,0.00030204,2]
[322673837,1713204553365,-400.0,0.00030204,2]
[322673838,1713204553389,-4534.67393154,0.00030205,5]
[322673914,1713204638435,-30.71866045,0.00030205,5]
[322673915,1713204638451,-2.10887528,0.00030205,5]
[322673916,1713204638460,-153.71801299,0.000319,5]
[322673917,1713204638470,-400.0,0.00031905,2]
[322673918,1713204638479,-320.0,0.00031905,2]
[322673919,1713204638490,-2858.49424654,0.00031906,2]
[322673921,1713204640309,-10878.58374986,0.00031906,2]
[322673927,1713204640367,-345.5,0.00031906,2]
[322673974,1713204643584,-500.0,0.00031906,2]
[322673975,1713204643596,-10307.4220036,0.00031906,2]
[322673976,1713204643606,-1210.18491626,0.00032,3]
[322673977,1713204643615,-726.03846189,0.00032,3]
[322673978,1713204643624,-191.09643603,0.00032602,4]
[322673979,1713204643633,-153.0,0.00032603,2]
[322673980,1713204643642,-235.19498628,0.00033422,2]
[322673982,1713204643652,-153.0,0.00033423,2]
[322673984,1713204643661,-172.6051023,0.00033423,2]
[322673987,1713204643670,-153.0,0.00033423,2]
[322673990,1713204643679,-153.0,0.00033423,2]
[322673993,1713204643688,-153.0,0.00033423,2]
[322673996,1713204643698,-153.0,0.00033478,2]
[322673997,1713204643707,-203.1366097,0.0003389,2]
[322673998,1713204643717,-1330.94970035,0.0003392,3]
[322674000,1713204643726,-153.0,0.00033978,2]
[322674002,1713204643734,-465.39337493,0.00034,4]
[322674003,1713204643744,-153.0,0.00034178,2]
[322674004,1713204643753,-153.0,0.00034245,2]
[322674005,1713204643763,-153.0,0.00034245,2]
[322674006,1713204643772,-402.6204321,0.00034245,2]
[322674007,1713204643781,-153.0,0.00034245,2]
[322674008,1713204643791,-153.0,0.00034245,2]
[322674009,1713204643800,-153.0,0.00034245,2]
[322674010,1713204643810,-153.0,0.00034245,2]
[322674011,1713204643822,-153.0,0.00034245,2]
[322674012,1713204643832,-153.0,0.00034245,2]
[322674013,1713204643841,-153.0,0.00034245,2]
[322674014,1713204643850,-153.0,0.00034245,2]
[322674015,1713204643859,-153.0,0.00034245,2]
[322674016,1713204643868,-153.0,0.00034245,2]
[322674017,1713204643878,-158.742856,0.00034247,2]
[322674018,1713204643887,-157.65740479,0.0003464,3]
[322674019,1713204643896,-2000.0,0.0003489,2]
[322674020,1713204643905,-1831.80574377,0.000349,2]
[322674021,1713204643914,-1043.3259765,0.00034953,4]
[322674022,1713204643923,-234.92448419,0.0003497,2]
[322674023,1713204643932,-261.08107347,0.00034988,4]
[322674024,1713204643940,-583.10393655,0.00034988,4]
[322674025,1713204643950,-455.84227846,0.00034988,4]
[322674026,1713204643959,-155.0,0.00034988,4]
[322674027,1713204643968,-1916.14309332,0.00034988,4]
[322674028,1713204643977,-1263.40287203,0.00034988,4]
[322674029,1713204643986,-1670.65452215,0.00034988,4]
[322674030,1713204643996,-546.61486938,0.00034988,4]
[322674031,1713204644005,-157.08243885,0.00034988,4]
[322674032,1713204644014,-154.87609912,0.00034988,4]
[322674033,1713204644023,-216.55287039,0.00034988,4]
[322674034,1713204644032,-154.9690062,0.00034988,4]
[322674035,1713204644041,-1861.68979718,0.00034988,4]
[322674036,1713204644051,-500.0,0.00034988,2]
[322674037,1713204644060,-215.87404724,0.00034988,4]
[322674038,1713204644071,-492.10772245,0.00034988,4]
[322674039,1713204644081,-192.59381461,0.00034988,4]
[322674040,1713204644090,-291.41711783,0.00034988,4]
[322674041,1713204644100,-608.82610058,0.00034988,2]
[322674042,1713204644109,-255.1544444,0.00034988,4]
[322674043,1713204644118,-2007.11563747,0.00034988,4]
[322674044,1713204644127,-381.16464708,0.00034988,4]
[322674045,1713204644135,-160.62566114,0.00034988,4]
[322674052,1713204675300,2841.84070774,0.000241,5]
[322674053,1713204732973,8800.0,0.000242,6]
[322674054,1713204784581,10000.0,0.000195,2]
[322674068,1713205747149,-622.68427412,0.00023379,2]
[322674069,1713205747169,-175.05226836,0.00023379,2]
[322674070,1713205747190,-906.9235514,0.0002338,2]
[322674071,1713205747210,-168.661616,0.00023398,2]
[322674072,1713205747233,-233.856802,0.00027397,2]
[322674073,1713205747255,-447.716586,0.00027397,2]
[322674074,1713205747281,-300.0,0.00027608,2]
[322674075,1713205747301,-300.0,0.00027608,2]
[322674076,1713205747321,-24890.0,0.00027609,2]
[322674077,1713205747342,-173.135108,0.0002838,2]
[322674078,1713205747361,-440.791394,0.00029457,2]
[322674079,1713205747381,-420.0,0.00029828,2]
[322674080,1713205747401,-326.29905644,0.0003,2]
[322674081,1713205749141,-154.78330338,0.00023378,2]
[322674082,1713205749161,-179.70094356,0.0003,2]
[322674083,1713205749181,-169.48838155,0.0003,2]
[322674084,1713205765111,-853.55431207,0.00025509,2]
[322674085,1713205769131,-48.41391285,0.00025509,2]
[322674086,1713205769150,-177.10611584,0.0003,2]
[322674087,1713205769176,-3.40550261,0.0003,2]
[322674088,1713205769195,-20472.90822684,0.00030205,4]
[322674089,1713205790138,87.66085555,0.00027397,2]
[322674134,1713205832469,-220.395697,0.00023672,2]
[322674135,1713205832482,-75.99880445,0.00027397,2]
[322674136,1713205832493,-901.96822492,0.00030509,2]
[322674138,1713205832504,-1242.51023388,0.00031489,4]
[322674141,1713205832516,-167.119003,0.00031719,2]
[322674143,1713205832528,-191.09643603,0.00032,4]
[322674145,1713205832539,-153.0,0.00032602,2]
[322674146,1713205832550,-29.91160072,0.00032899,4]
[322674147,1713205832566,-1188.60372746,0.00032899,4]
[322674148,1713205832576,-500.78203151,0.000329,120]
[322674149,1713205832587,-114.96286074,0.00033165,2]
[322674150,1713205832599,-332.75372526,0.00033165,2]
[322674151,1713205832609,-465.39337493,0.00034,4]
[322674152,1713205832620,-157.65740479,0.0003464,3]
[322674153,1713205832631,-150.75878594,0.00034731,2]
[322674154,1713205832643,-250.09073482,0.00034731,2]
[322674155,1713205832655,-217.74792847,0.00034898,2]
[322674156,1713205832666,-217.74792847,0.00034899,2]
[322674157,1713205832677,-217.74792847,0.00034899,2]
[322674159,1713205832689,-400.0,0.00034899,2]
[322674160,1713205832700,-177.84731503,0.00034899,2]
[322674251,1713205838515,-157.65740479,0.0003464,3]
[322674253,1713205838525,-222.15268497,0.00034899,2]
[322674255,1713205838534,-217.74792847,0.000349,2]
[322674258,1713205838543,-96.78198177,0.000349,2]
[322674303,1713205840647,-896.75426394,0.000349,2]
[322674361,1713205843674,-1006.46375429,0.000349,2]
[322674362,1713205843683,-217.74792847,0.000349,2]
[322674363,1713205843692,-1648.62516942,0.000349,2]
[322674364,1713205843701,-1042.91596156,0.00034953,4]
[322674365,1713205843710,-900.0,0.0003498,2]
[322674366,1713205843719,-300.0,0.0003498,3]
[322674367,1713205843729,-2086.08257242,0.00034986,2]
[322674368,1713205843738,-97.01837661,0.00034988,4]
[322674369,1713205843747,-1545.877682,0.00034988,4]
[322674370,1713205843756,-358.67576333,0.00034988,4]
[322674371,1713205843765,-1461.44626747,0.00034988,4]
[322674372,1713205843774,-203.53739899,0.00034988,4]
[322674373,1713205843783,-389.26324702,0.00034988,4]
[322674374,1713205843792,-325.34709261,0.00034988,4]
[322674375,1713205843801,-380.21365955,0.00034988,4]
[322674377,1713205843811,-595.24314335,0.00034988,4]
[322674379,1713205843819,-781.78611462,0.00034988,4]
[322674381,1713205843831,-154.92253873,0.00034988,4]
[322674383,1713205843840,-154.98450155,0.00034988,4]
[322674386,1713205843850,-2007.11563747,0.00034988,4]
[322674389,1713205843859,-608.82610058,0.00034988,2]
[322674390,1713205843867,-500.0,0.00034988,2]
[322674391,1713205843876,-2438.36308409,0.00034988,4]
[322674392,1713205843888,-4846.42835322,0.00034988,5]
[322674393,1713205843897,-184.16518448,0.00034988,4]
[322674394,1713205843905,-2595.89359022,0.00034988,4]
[322674395,1713205843915,-356.83159776,0.00034988,2]
[322674396,1713205843924,-204.13451278,0.00034988,4]
[322674397,1713205843933,-155.79079844,0.00034988,4]
[322674398,1713205843942,-687.19966601,0.00034989,4]
[322674399,1713205843951,-278.6350172,0.00034989,4]
[322674400,1713205843962,-34656.07670886,0.0003499,2]
[322674401,1713205843982,-352.87502768,0.0003499,2]
[322674446,1713206050593,-1077.0,0.0003149,4]
[322674485,1713206954156,-158.348772,0.00027397,2]
[322674486,1713206954177,-168.210959,0.00027397,2]
[322674487,1713206954197,-1000.0,0.000295,4]
[322674488,1713206954217,-1000.0,0.000299,4]
[322674489,1713206954237,-938.00510566,0.0003,4]
[322674517,1713207032654,-350.65607497,0.000279,2]
[322674518,1713207032664,-61.99489434,0.0003,4]
[322674519,1713207032674,-79.38903069,0.000305,4]
[322674593,1713207043767,-518.10253538,0.00027898,2]
[322674637,1713208148283,-300.0,0.00022989,2]
[322674638,1713208148306,-300.0,0.00022989,2]
[322674639,1713208148326,-2007.62821039,0.0002299,2]
[322674640,1713208148351,-5791.45874465,0.0002299,2]
[322674641,1713208148371,-622.68427412,0.00022991,2]
[322674642,1713208148392,-880.8735514,0.00022991,2]
[322674643,1713208148412,-22777.83227765,0.00022991,2]
[322674644,1713208148432,-5575.62419768,0.00022992,2]
[322674645,1713208148452,-2255.33685387,0.00023,2]
[322674646,1713208148471,-175.299891,0.00023003,2]
[322674647,1713208148491,-750.653274,0.00023005,2]
[322674648,1713208148510,-844.7745796,0.00023277,2]
[322674649,1713208148535,-24900.0,0.00024249,2]
[322674650,1713208148554,-1246.3466701,0.00024368,2]
[322674651,1713208148574,-420.0,0.00024956,2]
[322674652,1713208148597,-420.0,0.00025288,2]
[322674653,1713208148621,-167.890309,0.00025947,2]
[322674654,1713208148641,-163.0,0.00027,2]
[322674655,1713208148663,-587.0,0.00027092,2]
[322674656,1713208148684,-277.45481034,0.00027295,2]
[322674657,1713208148704,-473.94455587,0.00027295,2]
[322674658,1713208148724,-525.49067281,0.00027296,2]
[322674659,1713208148743,-23841.19412752,0.00027297,2]
[322674660,1713208152111,-7039.18180448,0.00027297,2]
[322674661,1713208157136,-11850.47847867,0.00027297,2]
[322674662,1713208157156,-193.795235,0.00027397,2]
[322674663,1713208157176,-173.58397,0.00027397,2]
[322674664,1713208157196,-233.856802,0.00027397,2]
[322674665,1713208157216,-163.0,0.00027671,2]
[322674666,1713208157237,-587.0,0.00027817,2]
[322674667,1713208157257,-818.47299729,0.000279,2]
[322674668,1713208157277,-173.58397,0.00028199,2]
[322674669,1713208157330,-163.0,0.00028767,2]
[322674670,1713208157356,-173.58397,0.00029,2]
[322674671,1713208157378,-823.0,0.0002941,2]
[322674672,1713208157400,-173.58397,0.00029801,2]
[322674673,1713208157422,-476.30542639,0.000299,2]
[322674674,1713208157443,-563.61476546,0.00029997,2]
[322674675,1713208157464,-160.62566114,0.00029998,2]
[322674676,1713208157487,-381.16464708,0.00029998,2]
[322674677,1713208157509,-175.05226836,0.00029998,2]
[322674678,1713208157529,-2124.60141988,0.00029998,2]
[322674679,1713208157549,-2096.03028856,0.00029999,2]
[322674680,1713208157569,-500.0,0.00029999,2]
[322674681,1713208157590,-500.0,0.00029999,2]
[322674682,1713208157613,-500.0,0.00029999,2]
[322674683,1713208157637,-417.63091491,0.00029999,2]
[322674684,1713208157656,-432.56019449,0.00029999,2]
[322674685,1713208157677,-151.0,0.00029999,2]
[322674686,1713208157697,-151.0,0.00029999,2]
[322674687,1713208157721,-41324.92199003,0.0003,30]
[322674688,1713208158012,-58438.71528625,0.0003,30]
[322674689,1713208158033,-3000.0,0.0003,4]
[322674690,1713208158053,-151.0,0.0003,2]
[322674691,1713208158075,-151.0,0.0003,2]
[322674692,1713208158103,-151.0,0.0003,2]
[322674693,1713208158125,-151.0,0.0003,2]
[322674694,1713208158145,-151.0,0.0003,2]
[322674695,1713208158166,-151.0,0.0003,2]
[322674696,1713208158186,-151.0,0.0003,2]
[322674697,1713208158206,-151.0,0.0003,2]
[322674698,1713208158227,-151.0,0.0003,2]
[322674699,1713208158247,-151.0,0.0003,2]
[322674700,1713208158267,-151.0,0.0003,2]
[322674701,1713208158286,-151.0,0.0003,2]
[322674702,1713208158308,-162.829545,0.0003,2]
[322674703,1713208158329,-870.614752,0.0003,2]
[322674704,1713208158352,-870.614752,0.0003,2]
[322674705,1713208158373,-351.00566475,0.0003,2]
[322674706,1713208170292,-2007.62821039,0.00027295,2]
[322674707,1713208170312,-710.58113336,0.00027295,2]
[322674708,1713208170331,-1100.33373673,0.00027296,2]
[322674709,1713208170356,-4360.91133466,0.00027296,2]
[322674710,1713208170378,-22771.62604295,0.00027296,2]
[322674711,1713208170402,-942.85412625,0.0003,2]
[322674712,1713208170425,-1293.859791,0.0003,2]
[322674713,1713208170448,-1293.859791,0.0003,2]
[322674714,1713208170471,-1293.859791,0.0003,2]
[322674715,1713208170494,-974.7614,0.0003,2]
[322674716,1713208170516,-974.7614,0.0003,2]
[322674717,1713208170538,-151.0,0.0003,2]
[322674718,1713208170560,-151.0,0.0003,2]
[322674719,1713208170583,-151.0,0.0003,2]
[322674720,1713208170614,-151.0,0.0003,2]
[322674721,1713208170636,-151.0,0.0003,2]
[322674722,1713208170660,-151.0,0.0003,2]
[322674723,1713208170680,-151.0,0.0003,2]
[322674724,1713208170700,-151.0,0.0003,2]
[322674725,1713208170722,-151.0,0.0003,2]
[322674726,1713208170743,-151.0,0.0003,2]
[322674727,1713208170763,-151.0,0.0003,2]
[322674728,1713208170783,-151.097466,0.0003,2]
[322674729,1713208170803,-151.097466,0.0003,2]
[322674730,1713208170824,-151.097466,0.0003,2]
[322674731,1713208170846,-151.097466,0.0003,2]
[322674732,1713208170871,-151.097466,0.0003,2]
[322674733,1713208170893,-151.097466,0.0003,2]
[322674734,1713208170913,-177.584879,0.0003,2]
[322674735,1713208170932,-177.584879,0.0003,2]
[322674736,1713208170953,-177.584879,0.0003,2]
[322674737,1713208170972,-177.584879,0.0003,2]
[322674738,1713208170992,-177.584879,0.0003,2]
[322674739,1713208171012,-177.584879,0.0003,2]
[322674740,1713208171035,-4377.605921,0.0003,2]
[322674741,1713208171055,-4377.605921,0.0003,2]
[322674742,1713208171076,-4377.605921,0.0003,2]
[322674743,1713208171096,-4377.605921,0.0003,2]
[322674744,1713208171123,-4377.605921,0.0003,2]
[322674745,1713208171143,-4377.605921,0.0003,2]
[322674746,1713208171165,-151.0,0.0003,2]
[322674747,1713208171184,-151.0,0.0003,2]
[322674748,1713208171204,-283.570857,0.0003,2]
[322674749,1713208171223,-151.0,0.0003,2]
[322674750,1713208171243,-139.75799518,0.0003,2]
[322674762,1713208231902,-2007.62821039,0.00027295,2]
[322674764,1713208231912,-545.64866486,0.000279,2]
[322674766,1713208231922,-11.24200482,0.0003,2]
[322674768,1713208231932,-151.0,0.0003,2]
[322674769,1713208231941,-151.0,0.0003,2]
[322674770,1713208231951,-151.0,0.0003,2]
[322674771,1713208231960,-151.0,0.0003,2]
[322674772,1713208231970,-151.0,0.0003,2]
[322674773,1713208231980,-380.0,0.00030084,2]
[322674774,1713208231990,-167.0,0.00030205,2]
[322674775,1713208232000,-920.61096931,0.000305,4]
[322674776,1713208232009,-151.0,0.000305,2]
[322674777,1713208232019,-151.0,0.000305,2]
[322674778,1713208232028,-173.58397,0.00030603,2]
[322674779,1713208232038,-151.0,0.0003061,2]
[322674780,1713208232049,-1000.0,0.00031,4]
[322674781,1713208232058,-201.40163906,0.00031,5]
[322674782,1713208232068,-400.0,0.00031099,2]
[322674783,1713208232078,-400.0,0.00031099,2]
[322674784,1713208232088,-1052.0,0.000311,4]
[322674785,1713208232098,-151.0,0.000311,2]
[322674786,1713208232108,-151.0,0.000311,2]
[322674787,1713208232118,-870.614752,0.000311,2]
[322674788,1713208232127,-870.614752,0.000311,2]
[322674789,1713208232138,-1293.859791,0.000311,2]
[322674790,1713208232147,-1293.859791,0.000311,2]
[322674791,1713208232155,-151.0,0.000311,2]
[322674792,1713208232164,-151.0,0.000311,2]
[322674793,1713208232173,-151.0,0.000311,2]
[322674794,1713208232181,-151.097466,0.000311,2]
[322674795,1713208232190,-151.097466,0.000311,2]
[322674796,1713208232199,-177.584879,0.000311,2]
[322674797,1713208232209,-177.584879,0.000311,2]
[322674798,1713208232218,-4377.605921,0.000311,2]
[322674799,1713208232227,-4377.605921,0.000311,2]
[322674800,1713208232236,-151.0,0.000311,2]
[322674801,1713208232246,-151.0,0.000311,2]
[322674802,1713208232255,-151.0,0.000311,2]
[322674803,1713208232265,-151.0,0.000311,2]
[322674804,1713208232273,-151.0,0.000311,2]
[322674805,1713208232283,-476.30542636,0.00031125,2]
[322674806,1713208232292,-151.0,0.00031408,2]
[322674807,1713208232302,-298.31295942,0.00031408,30]
[322674808,1713208232311,-223.432,0.00031486,2]
[322674809,1713208232320,-257.092,0.00031486,2]
[322674810,1713208232330,-755.09359961,0.0003149,4]
[322674811,1713208232339,-1332.28344254,0.0003149,5]
[322674812,1713208232348,-151.0,0.0003149,2]
[322674813,1713208232358,-151.0,0.0003149,2]
[322674814,1713208232367,-151.0,0.0003149,2]
[322674815,1713208232377,-151.0,0.0003149,2]
[322674816,1713208232390,-870.614752,0.0003149,2]
[322674817,1713208232401,-870.614752,0.0003149,2]
[322674818,1713208232410,-1293.859791,0.0003149,2]
[322674819,1713208232420,-1293.859791,0.0003149,2]
[322674821,1713208232430,-974.7614,0.0003149,2]
[322674823,1713208232439,-151.0,0.0003149,2]
[322674824,1713208232449,-151.0,0.0003149,2]
[322674825,1713208232458,-151.0,0.0003149,2]
[322674826,1713208232469,-151.0,0.0003149,2]
[322674827,1713208232479,-151.0,0.0003149,2]
[322674828,1713208232489,-151.0,0.0003149,2]
[322674829,1713208232499,-151.097466,0.0003149,2]
[322674830,1713208232508,-151.097466,0.0003149,2]
[322674831,1713208232518,-151.097466,0.0003149,2]
[322674832,1713208232528,-151.097466,0.0003149,2]
[322674833,1713208232538,-177.584879,0.0003149,2]
[322674834,1713208232548,-177.584879,0.0003149,2]
[322674835,1713208232558,-177.584879,0.0003149,2]
[322674837,1713208232568,-177.584879,0.0003149,2]
[322674839,1713208232578,-4377.605921,0.0003149,2]
[322674840,1713208232587,-4377.605921,0.0003149,2]
[322674842,1713208232597,-4377.605921,0.0003149,2]
[322674844,1713208232607,-4377.605921,0.0003149,2]
[322674846,1713208232618,-151.0,0.0003149,2]
[322674847,1713208232628,-151.0,0.0003149,2]
[322674848,1713208232640,-151.0,0.0003149,2]
[322674850,1713208232652,-151.0,0.0003149,2]
[322674852,1713208232661,-291.111175,0.0003149,2]
[322674854,1713208232670,-1242.51023388,0.00031491,4]
[322674856,1713208232680,-151.0,0.00031491,2]
[322674858,1713208232691,-203.972086,0.00031491,2]
[322674860,1713208232700,-151.0,0.00031491,2]
[322674862,1713208232711,-151.0,0.00031491,2]
[322674864,1713208232720,-151.0,0.00031491,2]
[322674865,1713208232729,-151.0,0.00031491,2]
[322674867,1713208232738,-151.0,0.00031491,2]
[322674869,1713208232747,-151.0,0.00031491,2]
[322674870,1713208232757,-151.0,0.00031491,2]